bitfinex-derivatives/quotes_SOLF0:USTF0_20250114
["timestamp","ask_amount","ask_price","bid_price","bid_amount"]
[1736895696588,5.34,188.69,188.68,2.6509]
[1736895698398,7.77481151,188.7,188.64,1.5644]
[1736895698695,7.77481151,188.7,188.69,2.6507]
[1736895704401,7.77481151,188.72,188.67,2.651]
[1736895704604,7.77481151,188.72,188.65,9.35951151]
[1736895704902,7.77481151,188.72,188.66,1.6977]
[1736895705997,7.77481151,188.72,188.71,2.6504]
[1736895707895,7.9899,188.75,188.67,7.77481151]
[1736895707896,5.34,188.75,188.67,7.77481151]
[1736895708213,7.77481151,188.77,188.69,7.77481151]
[1736895708503,7.77481151,188.78,188.77,2.6496]
[1736895708706,15.76401151,188.8,188.77,2.6496]
[1736895709002,10.42401151,188.8,188.77,2.6496]
[1736895709502,4.9253,188.86,188.73,7.77481151]
[1736895709706,7.77481151,188.81,188.73,9.38301151]
[1736895709901,7.77481151,188.81,188.73,10.95251151]
[1736895710703,7.77481151,188.81,188.75,7.77481151]
[1736895711109,7.77481151,188.81,188.8,2.6492]
[1736895712804,7.77481151,188.83,188.77,7.77481151]
[1736895713009,7.77481151,188.83,188.82,2.6489]
[1736895716008,7.77481151,188.83,188.73,59.345589]
[1736895716207,7.77481151,188.78,188.73,59.345589]
[1736895716710,7.77481151,188.78,188.77,2.6495]
[1736895716910,7.77481151,188.78,188.73,59.345589]
[1736895717110,7.77481151,188.78,188.73,57.776089]
[1736895717311,7.77481151,188.76,188.74,2.65]
[1736895717607,7.77481151,188.76,188.73,56.167889]
[1736895717806,10.42461151,188.76,188.73,58.817989]
[1736895718007,7.77481151,188.74,188.73,58.817989]
[1736895718211,7.77481151,188.74,188.73,56.167889]
[1736895719314,7.77481151,188.74,188.73,58.818089]
[1736895719518,2.6496,188.77,188.73,58.818089]
[1736895719519,7.77481151,188.76,188.73,56.167889]
[1736895720014,2.6493,188.79,188.75,2.6499]
[1736895720318,7.77481151,188.76,188.75,2.6499]
[1736895721915,5.34,188.82,188.73,63.94270051]
[1736895722120,7.77481151,188.81,188.74,1.6957]
[1736895722320,5.34,188.82,188.75,7.77481151]
[1736895722521,13.11481151,188.82,188.81,2.649]
[1736895722820,5.34,188.82,188.81,2.649]
[1736895723518,7.77481151,188.84,188.77,7.77481151]
[1736895724317,7.77481151,188.84,188.82,2.6488]
[1736895724818,7.77481151,188.84,188.77,7.77481151]
[1736895724819,7.77481151,188.84,188.83,2.6488]
[1736895725417,7.77481151,188.84,188.74,4.9112]
[1736895725621,7.77481151,188.82,188.75,7.77481151]
[1736895726120,7.77481151,188.82,188.79,2.6492]
[1736895726719,7.77481151,188.82,188.75,7.77481151]
[1736895726920,7.77481151,188.82,188.8,2.6491]
[1736895727121,7.77481151,188.81,188.8,2.6491]
[1736895728527,7.77481151,188.81,188.75,7.77481151]
[1736895728725,7.77481151,188.81,188.79,2.6493]
[1736895728927,7.77481151,188.81,188.74,4.9112]
[1736895729315,10.42391151,188.81,188.78,2.6493]
[1736895730125,7.77481151,188.81,188.79,2.6493]
[1736895731221,5.34,188.86,188.75,7.77481151]
[1736895731428,7.77481151,188.83,188.77,7.77481151]
[1736895731626,7.77481151,188.85,188.79,7.77481151]
[1736895731833,7.77481151,188.85,188.84,2.6486]
[1736895734327,1.6833,188.89,188.79,7.77481151]
[1736895734530,7.77481151,188.86,188.79,7.77481151]
[1736895734729,7.77481151,188.84,188.77,7.77481151]
[1736895735026,7.77481151,188.84,188.74,4.9112]
[1736895735027,7.77481151,188.84,188.82,2.6488]
[1736895735531,7.77481151,188.84,188.76,7.77481151]
[1736895735732,7.77481151,188.84,188.82,2.6488]
[1736895736329,7.0433,188.89,188.78,7.77481151]
[1736895736529,7.77481151,188.84,188.74,62.44103771]
[1736895736834,7.77481151,188.84,188.77,7.77481151]
[1736895737033,10.42341151,188.84,188.81,2.6489]
[1736895737332,10.42341151,188.84,188.77,7.77481151]
[1736895738930,10.42341151,188.84,188.81,2.6489]
[1736895740532,7.77481151,188.84,188.77,7.77481151]
[1736895740739,7.77481151,188.84,188.82,2.6489]
[1736895743334,7.77481151,188.84,188.74,62.44103771]
[1736895743534,7.77481151,188.8,188.74,62.44103771]
[1736895743933,7.77481151,188.8,188.79,2.6493]
[1736895744542,7.77481151,188.81,188.74,70.21584922]
[1736895744725,7.0433,188.89,188.74,70.21584922]
[1736895744929,2.6486,188.85,188.74,70.21584922]
[1736895745236,7.77481151,188.82,188.81,2.6489]
[1736895746036,7.77481151,188.82,188.8,2.649]
[1736895746237,7.77481151,188.82,188.74,70.21584922]
[1736895746537,7.77481151,188.82,188.74,12.68601151]
[1736895747637,7.77481151,188.82,188.81,2.649]
[1736895750239,7.77481151,188.82,188.74,12.68601151]
[1736895750434,7.77481151,188.8,188.74,4.9112]
[1736895750740,10.42431151,188.78,188.71,7.77481151]
[1736895751039,7.77481151,188.76,188.69,9.33821151]
[1736895751630,7.77481151,188.76,188.74,2.6499]
[1736895753437,7.77481151,188.76,188.69,66.88655932]
[1736895753644,7.77481151,188.74,188.69,66.88655932]
[1736895753842,7.77481151,188.74,188.69,59.11174781]
[1736895754342,7.77481151,188.74,188.72,2.6503]
[1736895755239,2.6502,188.73,188.69,57.54834781]
[1736895755443,1.6344,188.78,188.69,57.54834781]
[1736895755444,7.77481151,188.71,188.69,57.54834781]
[1736895755943,10.42531151,188.71,188.67,2.6509]
[1736895756242,199.9628,188.78,188.64,1.6707]
[1736895756243,7.77481151,188.69,188.64,1.6707]
[1736895756643,7.77481151,188.69,188.66,2.651]
[1736895756832,7.77481151,188.67,188.61,3.87490601]
[1736895757033,7.77481151,188.65,188.61,3.87490601]
[1736895757234,7.77481151,188.65,188.63,2.6516]
[1736895757441,7.77481151,188.65,188.61,3.87490601]
[1736895757639,7.77481151,188.65,188.55,57.78604783]
[1736895757840,7.77481151,188.61,188.59,2.6521]
[1736895758241,7.77481151,188.61,188.53,7.22325597]
[1736895758450,7.77481151,188.58,188.53,7.22325597]
[1736895759346,7.77481151,188.58,188.52,11.16761151]
[1736895759546,2.6519,188.61,188.52,11.16761151]
[1736895759746,5.36,188.64,188.54,7.77481151]
[1736895760040,7.77481151,188.63,188.56,7.77481151]
[1736895760246,7.77481151,188.63,188.62,2.6516]
[1736895761543,5.36,188.64,188.62,2.6516]
[1736895761741,5.36,188.64,188.54,12.15120974]
[1736895761941,5.36,188.64,188.6,2.6519]
[1736895762141,12.15120974,188.63,188.52,3.3928]
[1736895762334,14.80290974,188.63,188.58,2.6522]
[1736895763046,2.6517,188.62,188.58,2.6522]
[1736895763842,14.80280974,188.63,188.58,2.6522]
[1736895764043,14.80280974,188.63,188.59,2.6521]
[1736895764441,12.15120974,188.63,188.52,3.2301]
[1736895764641,12.15120974,188.66,188.54,12.15120974]
[1736895765041,5.38,188.67,188.54,17.53120974]
[1736895766551,12.15120974,188.66,188.54,12.15120974]
[1736895766736,12.15120974,188.63,188.52,3.2301]
[1736895766941,14.80290974,188.63,188.52,3.2301]
[1736895767246,12.15120974,188.63,188.52,3.2301]
[1736895767647,2.6517,188.62,188.52,3.2301]
[1736895767843,12.15120974,188.63,188.59,2.6521]
[1736895768151,12.15120974,188.63,188.52,3.2301]
[1736895769050,12.15120974,188.66,188.52,3.2301]
[1736895769248,12.15120974,188.66,188.54,12.15120974]
[1736895769643,12.15120974,188.66,188.64,2.6514]
[1736895771247,14.80250974,188.66,188.57,2.6523]
[1736895771452,12.15120974,188.66,188.54,12.15120974]
[1736895771846,2.6513,188.65,188.61,2.6517]
[1736895772950,12.15120974,188.66,188.54,12.15120974]
[1736895773549,12.15120974,188.66,188.62,2.6516]
[1736895774251,12.15120974,188.66,188.63,2.6516]
[1736895775154,14.80240974,188.66,188.63,2.6516]
[1736895776249,14.80240974,188.66,188.54,12.15120974]
[1736895776250,12.15120974,188.66,188.54,12.15120974]
[1736895776549,2.6513,188.65,188.61,2.6517]
[1736895777353,2.6513,188.65,188.54,12.15120974]
[1736895777652,2.6513,188.65,188.62,2.6516]
[1736895777856,12.15120974,188.63,188.53,56.30801058]
[1736895778045,12.15120974,188.63,188.58,2.6522]
[1736895778248,12.15120974,188.63,188.53,56.30801058]
[1736895778445,2.6517,188.62,188.53,56.30801058]
[1736895778646,2.6517,188.62,188.55,2.6526]
[1736895778944,2.6517,188.62,188.53,56.30801058]
[1736895779453,2.6524,188.58,188.55,2.6526]
[1736895779652,17.53120974,188.6,188.48,3.81712356]
[1736895780151,17.53120974,188.6,188.5,12.15120974]
[1736895780354,5.38,188.6,188.51,4.7426]
[1736895780656,5.38,188.65,188.56,12.15120974]
[1736895781557,5.38,188.65,188.62,2.6517]
[1736895783056,8.0313,188.65,188.62,2.6517]
[1736895783458,5.38,188.65,188.62,2.6517]
[1736895784054,5.38,188.65,188.61,2.6518]
[1736895785356,8.0313,188.65,188.61,2.6518]
[1736895785962,8.0313,188.65,188.62,2.6517]
[1736895786163,2.6513,188.65,188.62,2.6517]
[1736895787765,5.4,188.66,188.65,2.6513]
[1736895787966,195.0,188.71,188.59,12.15120974]
[1736895788161,195.0,188.71,188.6,4.8508]
[1736895788366,5.4,188.72,188.69,2.6507]
[1736895788974,2.6505,188.71,188.6,4.8508]
[1736895789266,5.4,188.72,188.6,4.8508]
[1736895789471,12.15120974,188.69,188.6,4.8508]
[1736895789663,2.6509,188.68,188.6,4.8508]
[1736895790066,12.15120974,188.69,188.6,4.8508]
[1736895790265,5.4,188.72,188.55,19.37446571]
[1736895790266,12.15120974,188.66,188.55,19.37446571]
[1736895790572,12.15120974,188.66,188.61,2.6518]
[1736895791165,2.6513,188.65,188.61,2.6518]
[1736895791365,5.4,188.65,188.55,15.42250974]
[1736895791569,5.4,188.65,188.63,2.6515]
[1736895791872,196.695,188.76,188.55,15.42250974]
[1736895792073,196.695,188.76,188.69,2.6507]
[1736895792074,5.4,188.72,188.69,2.6507]
[1736895792967,8.0503,188.72,188.69,2.6507]
[1736895793167,5.4,188.72,188.62,3.2496]
[1736895793364,2.6509,188.68,188.62,3.2496]
[1736895794172,12.15120974,188.7,188.62,3.2496]
[1736895794872,14.80220974,188.67,188.57,5.3048]
[1736895795072,14.80220974,188.67,188.57,1.6194]
[1736895795277,14.80220974,188.67,188.63,2.6515]
[1736895795471,14.80220974,188.67,188.57,1.6194]
[1736895795971,14.80220974,188.67,188.63,2.6514]
[1736895796276,2.6512,188.66,188.63,2.6514]
[1736895797067,12.15120974,188.67,188.57,1.6194]
[1736895797276,12.15120974,188.64,188.61,2.6517]
[1736895797875,12.15120974,188.64,188.59,2.6521]
[1736895798475,2.6517,188.62,188.59,2.6521]
[1736895798969,2.6517,188.62,188.55,1.6915]
[1736895799175,2.6517,188.62,188.6,2.652]
[1736895799574,12.15120974,188.64,188.63,2.6516]
[1736895799773,5.4,188.65,188.55,1.6915]
[1736895800072,5.4,188.65,188.64,2.6514]
[1736895801377,17.55120974,188.68,188.56,12.15120974]
[1736895801571,17.55120974,188.68,188.66,2.6511]
[1736895803877,8.0508,188.69,188.66,2.6511]
[1736895804077,20.20200974,188.69,188.66,2.6511]
[1736895804277,20.20200974,188.69,188.56,24.99669664]
[1736895804278,12.15120974,188.69,188.56,24.99669664]
[1736895804478,12.15120974,188.69,188.59,12.15120974]
[1736895804678,12.15120974,188.69,188.6,3.1953]
[1736895805385,14.80160974,188.72,188.68,2.6509]
[1736895805674,5.4,188.71,188.68,2.6509]
[1736895805878,5.4,188.71,188.69,2.6507]
[1736895806978,12.15120974,188.72,188.71,2.6504]
[1736895807369,12.15120974,188.72,188.6,16.0407869]
[1736895807572,12.15120974,188.72,188.6,3.1953]
[1736895810074,12.15120974,188.72,188.7,2.6505]
[1736895814979,12.15120974,188.72,188.63,1.6946]
[1736895815780,12.15120974,188.72,188.67,2.651]
[1736895816182,12.15120974,188.72,188.63,1.6946]
[1736895817173,2.6507,188.69,188.67,2.651]
[1736895817479,2.6507,188.69,188.6,3.1953]
[1736895817680,2.6507,188.69,188.66,2.6511]
[1736895818584,14.80190974,188.69,188.66,2.6511]
[1736895819281,2.651,188.67,188.64,2.6513]
[1736895819482,8.031,188.67,188.64,2.6513]
[1736895819880,12.15120974,188.66,188.64,2.6513]
[1736895820478,2.6513,188.65,188.55,13.75940974]
[1736895820783,12.15120974,188.66,188.55,1.6082]
[1736895822186,2.6514,188.64,188.61,2.6518]
[1736895822984,2.6513,188.65,188.62,2.6517]
[1736895823185,12.15120974,188.69,188.55,13.75940974]
[1736895823387,5.38,188.68,188.55,13.75940974]
[1736895824189,8.0309,188.68,188.65,2.6512]
[1736895825889,2.6512,188.66,188.55,13.75940974]
[1736895826086,12.15120974,188.66,188.55,13.75940974]
[1736895826987,2.6514,188.65,188.62,2.6516]
[1736895827390,12.15120974,188.66,188.55,13.75940974]
[1736895827580,14.80240974,188.66,188.63,2.6515]
[1736895828586,195.0,188.72,188.55,13.75940974]
[1736895828886,5.38,188.67,188.55,13.75940974]
[1736895829988,8.031,188.67,188.64,2.6513]
[1736895831189,14.80240974,188.66,188.55,13.75940974]
[1736895831389,14.80240974,188.66,188.63,2.6515]
[1736895839792,12.15120974,188.66,188.56,5.3051]
[1736895840592,2.6509,188.68,188.66,2.6511]
[1736895840798,12.15120974,188.69,188.58,12.15120974]
[1736895840988,14.80160974,188.72,188.69,2.6506]
[1736895841189,5.38,188.71,188.69,2.6506]
[1736895841396,14.80160974,188.72,188.69,2.6506]
[1736895842304,12.15120974,188.72,188.7,2.6505]
[1736895843491,147.56355902,188.85,188.64,12.15120974]
[1736895843698,12.15120974,188.79,188.67,12.15120974]
[1736895843899,5.63513902,188.84,188.7,12.15120974]
[1736895843900,5.38,188.81,188.7,12.15120974]
[1736895844098,14.80010974,188.82,188.77,2.6495]
[1736895844298,5.38,188.81,188.71,1.6842]
[1736895844692,12.15120974,188.82,188.78,2.6493]
[1736895844895,17.53120974,188.82,188.78,2.6493]
[1736895845297,17.53120974,188.82,188.71,1.6842]
[1736895845503,1.5701,188.84,188.71,1.6842]
[1736895845504,5.38,188.87,188.76,12.15120974]
[1736895845701,5.38,188.87,188.77,3.1738]
[1736895845995,5.38,188.87,188.83,2.6487]
[1736895846698,8.0282,188.87,188.83,2.6487]
[1736895847002,8.0282,188.87,188.82,2.6489]
[1736895847192,12.15120974,188.84,188.77,3.1738]
[1736895847397,12.15120974,188.78,188.72,56.14642335]
[1736895847597,12.15120974,188.78,188.68,8.95620873]
[1736895847796,12.15120974,188.72,188.68,7.27260873]
[1736895847994,12.15120974,188.72,188.67,7.27260873]
[1736895848203,12.15120974,188.69,188.67,7.27260873]
[1736895848401,2.6509,188.68,188.67,7.27260873]
[1736895848607,12.15120974,188.69,188.64,87.27130485]
[1736895848800,12.15120974,188.68,188.64,87.27130485]
[1736895849001,12.15120974,188.68,188.62,145.94873288]
[1736895849002,200.4,188.71,188.62,145.94873288]
[1736895849213,12.15120974,188.72,188.61,12.15120974]
[1736895849509,5.4,188.73,188.62,1.6856]
[1736895850003,5.4,188.73,188.63,1.6112]
[1736895851111,5.4,188.73,188.69,2.6507]
[1736895852201,5.4,188.73,188.63,1.6112]
[1736895852401,2.6503,188.72,188.66,2.651]
[1736895852598,19.42326374,188.71,188.57,1.6871]
[1736895852802,19.42326374,188.71,188.57,3.3751]
[1736895853306,2.6506,188.7,188.57,3.3751]
[1736895854507,2.6506,188.7,188.65,2.6512]
[1736895855105,4.3577,188.7,188.65,2.6512]
[1736895855407,1.7071,188.7,188.57,3.3751]
[1736895855609,5.4,188.75,188.61,19.42326374]
[1736895855804,5.4,188.75,188.64,19.42326374]
[1736895856001,216.13036374,188.77,188.74,2.65]
[1736895856198,221.55036374,188.77,188.65,4.7895]
[1736895856401,2.65,188.75,188.68,2.6508]
[1736895856599,221.55036374,188.77,188.68,2.6508]
[1736895856600,19.42326374,188.74,188.68,2.6508]
[1736895856899,19.42326374,188.71,188.57,3.2444]
[1736895857103,5.42,188.7,188.57,4.7895]
[1736895857507,2.6508,188.69,188.57,4.7895]
[1736895857710,19.42326374,188.68,188.57,4.7895]
[1736895860112,22.07416374,188.68,188.64,2.6514]
[1736895861112,19.42326374,188.68,188.64,2.6514]
[1736895863013,19.42326374,188.68,188.62,2.6516]
[1736895863311,19.42326374,188.68,188.57,3.122]
[1736895863507,21.12756374,188.68,188.57,3.122]
[1736895863704,3.2131,188.69,188.57,3.122]
[1736895863910,19.42326374,188.67,188.57,3.122]
[1736895864102,19.42326374,188.67,188.51,1.6664]
[1736895864103,19.42326374,188.64,188.52,1.696]
[1736895864309,5.42,188.63,188.52,1.696]
[1736895865112,5.42,188.63,188.51,1.6664]
[1736895865113,1.6338,188.62,188.51,1.6664]
[1736895865510,5.42,188.63,188.51,1.6664]
[1736895865708,5.42,188.63,188.53,19.42326374]
[1736895866011,5.42,188.63,188.51,1.6664]
[1736895866612,5.42,188.63,188.5,1.6826]
[1736895866915,19.42326374,188.59,188.48,3.81712356]
[1736895867112,214.42326374,188.62,188.48,3.81712356]
[1736895867310,195.0,188.62,188.49,19.42326374]
[1736895867509,5.42,188.63,188.61,2.6518]
[1736895867709,5.42,188.63,188.52,19.42326374]
[1736895867909,5.42,188.63,188.53,3.3066]
[1736895868110,5.42,188.63,188.58,2.6522]
[1736895868725,2.6517,188.62,188.58,2.6522]
[1736895868921,5.42,188.63,188.53,3.3066]
[1736895870222,1.6338,188.67,188.55,19.42326374]
[1736895870428,195.0,188.68,188.56,1.6912]
[1736895871428,2.6514,188.65,188.61,2.6517]
[1736895871626,214.42326374,188.68,188.56,1.6912]
[1736895871824,195.0,188.68,188.56,1.6912]
[1736895872130,5.48,188.69,188.56,1.6912]
[1736895873124,2.651,188.68,188.56,1.6912]
[1736895873324,5.48,188.69,188.56,1.6912]
[1736895873519,5.48,188.69,188.58,19.42326374]
[1736895873729,200.48,188.73,188.58,19.42326374]
[1736895873931,200.48,188.73,188.61,19.42326374]
[1736895874127,200.48,188.73,188.62,1.5998]
[1736895874928,219.90326374,188.73,188.58,19.42326374]
[1736895875128,219.90326374,188.73,188.56,1.6912]
[1736895875428,2.6507,188.69,188.65,2.6513]
[1736895876428,2.651,188.68,188.61,2.6518]
[1736895876628,19.42326374,188.7,188.56,1.6912]
[1736895876829,219.90326374,188.73,188.58,19.42326374]
[1736895877523,7.2042,188.74,188.72,2.6503]
[1736895877929,7.2042,188.74,188.62,1.7057]
[1736895878721,2.6502,188.73,188.69,2.6507]
[1736895878928,7.2042,188.74,188.69,2.6507]
[1736895879125,7.2042,188.74,188.62,1.7057]
[1736895879326,1.7042,188.74,188.62,1.7057]
[1736895879531,1.7042,188.74,188.63,1.5517]
[1736895879933,1.7042,188.74,188.72,2.6502]
[1736895881335,1.7042,188.74,188.64,1.6373]
[1736895881535,1.7042,188.74,188.73,2.6502]
[1736895882435,1.7042,188.74,188.72,2.6503]
[1736895883032,1.7042,188.74,188.71,2.6504]
[1736895883934,4.3543,188.74,188.71,2.6504]
[1736895884835,1.7042,188.74,188.64,1.6373]
[1736895885230,19.42326374,188.73,188.64,1.6373]
[1736895885429,19.42326374,188.73,188.62,1.7057]
[1736895885630,13.84582343,188.74,188.62,13.84732343]
[1736895886031,16.49592343,188.74,188.62,13.84732343]
[1736895886430,17.91638446,188.77,188.65,12.14162343]
[1736895886634,8.1497,188.76,188.73,2.6501]
[1736895886836,8.1497,188.76,188.65,12.14162343]
[1736895887039,2.6497,188.76,188.65,12.14162343]
[1736895887241,8.1497,188.76,188.65,12.14162343]
[1736895887441,8.1497,188.76,188.72,2.6502]
[1736895888436,5.5,188.76,188.74,2.6499]
[1736895890542,2.65,188.75,188.71,2.6503]
[1736895890737,5.5,188.76,188.71,2.6503]
[1736895891946,2.6501,188.74,188.71,2.6503]
[1736895892239,2.6501,188.74,188.57,5.5]
[1736895892240,39.72478494,188.73,188.55,3.6926976]
[1736895892437,19.4175041,188.67,188.55,3.6926976]
[1736895892746,2.6517,188.63,188.55,3.6926976]
[1736895892941,5.5,188.66,188.54,3.2767]
[1736895892942,19.4175041,188.64,188.54,3.2767]
[1736895893439,19.4175041,188.64,188.57,2.6523]
[1736895894339,19.4175041,188.64,188.54,3.2767]
[1736895894540,19.4175041,188.64,188.58,2.6523]
[1736895895137,19.4175041,188.64,188.6,2.6519]
[1736895895347,5.5,188.66,188.54,3.2767]
[1736895896542,5.5,188.66,188.62,2.6517]
[1736895898045,5.5,188.66,188.63,2.6515]
[1736895899444,5.5,188.66,188.54,22.6942041]
[1736895899646,5.5,188.66,188.64,2.6514]
[1736895901245,5.5,188.67,188.54,22.6942041]
[1736895901547,5.5,188.67,188.54,27.9998041]
[1736895902142,199.2767,188.71,188.57,19.4175041]
[1736895902341,5.5,188.7,188.57,19.4175041]
[1736895902538,199.2767,188.71,188.63,19.4175041]
[1736895902539,195.0,188.71,188.63,19.4175041]
[1736895902740,5.5,188.76,188.64,4.8992]
[1736895903151,5.5,188.76,188.64,3.2117]
[1736895903344,5.5,188.76,188.67,2.6509]
[1736895903345,19.4175041,188.74,188.67,2.6509]
[1736895903548,19.4175041,188.74,188.64,1.5585]
[1736895904050,2.6505,188.71,188.67,2.6509]
[1736895904248,2.6505,188.71,188.64,1.5585]
[1736895905151,2.6505,188.71,188.68,2.6508]
[1736895905346,2.6505,188.71,188.64,1.5585]
[1736895905747,19.4175041,188.74,188.6,19.4175041]
[1736895905946,3.2488,188.73,188.59,3.3445]
[1736895906145,4.8217,188.73,188.59,3.3445]
[1736895906852,2.6508,188.69,188.66,2.6511]
[1736895907048,5.54,188.68,188.66,2.6511]
[1736895909144,8.191,188.68,188.64,2.6513]
[1736895909452,12.15233159,188.66,188.58,1.6056]
[1736895909947,12.15233159,188.66,188.54,13.78193159]
[1736895910551,2.6515,188.64,188.54,13.78193159]
[1736895911256,2.6515,188.64,188.61,2.6518]
[1736895911453,12.15233159,188.66,188.54,13.78193159]
[1736895912857,12.15233159,188.66,188.63,2.6515]
[1736895913357,12.15233159,188.66,188.64,2.6514]
[1736895914753,200.54,188.68,188.57,12.15233159]
[1736895915458,200.54,188.68,188.65,2.6512]
[1736895916356,195.0,188.68,188.65,2.6512]
[1736895916557,5.52,188.67,188.65,2.6512]
[1736895916760,8.171,188.67,188.63,2.6515]
[1736895916957,12.15233159,188.66,188.57,12.15233159]
[1736895917467,2.6514,188.65,188.57,12.15233159]
[1736895917856,12.15233159,188.66,188.54,13.78193159]
[1736895918058,2.6515,188.64,188.6,2.6519]
[1736895918765,2.6513,188.65,188.61,2.6517]
[1736895918961,12.15233159,188.66,188.61,2.6517]
[1736895920161,195.0,188.68,188.57,12.15233159]
[1736895920358,200.52,188.68,188.57,12.15233159]
[1736895920761,2.6508,188.69,188.66,2.6511]
[1736895921061,5.52,188.68,188.66,2.6511]
[1736895923056,5.52,188.69,188.61,12.15233159]
[1736895923259,5.52,188.69,188.62,1.6031]
[1736895923460,5.52,188.69,188.62,3.296]
[1736895923961,5.52,188.69,188.68,2.6508]
[1736895928470,5.52,188.69,188.67,2.651]
[1736895932678,5.52,188.69,188.62,4.8717]
[1736895932883,17.67233159,188.69,188.65,2.6512]
[1736895933787,17.67233159,188.69,188.62,3.296]
[1736895934382,5.52,188.69,188.62,3.296]
[1736895935185,5.52,188.69,188.68,2.6509]
[1736895936986,5.52,188.69,188.67,2.651]
[1736895937885,2.651,188.68,188.65,2.6512]
[1736895938383,17.67233159,188.69,188.63,2.6516]
[1736895938384,14.80353159,188.66,188.63,2.6516]
[1736895938682,12.15233159,188.66,188.56,3.2386]
[1736895939080,12.15233159,188.63,188.56,3.2386]
[1736895939278,5.5,188.62,188.56,3.2386]
[1736895940587,8.1518,188.62,188.59,2.652]
[1736895943787,8.1518,188.62,188.56,3.2386]
[1736895943992,5.5,188.64,188.56,3.2386]
[1736895944798,12.15233159,188.63,188.56,3.2386]
[1736895945285,14.80403159,188.63,188.6,2.652]
[1736895946388,12.15233159,188.63,188.53,3.1553]
[1736895947791,2.652,188.6,188.57,2.6523]
[1736895950794,2.6521,188.59,188.53,3.1553]
[1736895951193,2.6521,188.59,188.56,2.6525]
[1736895951890,2.6523,188.58,188.55,2.6526]
[1736895952091,17.63233159,188.57,188.52,54.83875598]
[1736895953197,17.63233159,188.57,188.48,1.6864]
[1736895954191,2.6528,188.54,188.51,2.6532]
[1736895954985,12.15233159,188.54,188.49,2.6534]
[1736895955192,12.15233159,188.54,188.42,1.5381]
[1736895955193,12.15233159,188.51,188.42,1.5381]
[1736895955390,5.48,188.5,188.42,1.5381]
[1736895956297,5.48,188.5,188.47,2.6537]
[1736895956994,5.48,188.5,188.48,2.6536]
[1736895959587,12.15233159,188.51,188.42,1.5381]
[1736895959790,5.48,188.51,188.44,12.15233159]
[1736895961095,200.5,188.53,188.51,2.6531]
[1736895961295,5.5,188.53,188.44,12.15233159]
[1736895961690,5.5,188.55,188.44,12.15233159]
[1736895961896,5.5,188.55,188.47,12.15233159]
[1736895962097,5.5,188.56,188.48,3.3754]
[1736895962794,5.5,188.56,188.55,2.6527]
[1736895966699,5.5,188.56,188.49,1.6256]
[1736895966896,12.15233159,188.54,188.48,3.3754]
[1736895967500,12.15233159,188.54,188.51,2.6531]
[1736895967895,12.15233159,188.54,188.48,1.6964]
[1736895967896,5.48,188.53,188.48,1.6964]
[1736895968201,5.48,188.53,188.52,2.6531]
[1736895968600,5.48,188.53,188.48,1.6964]
[1736895968800,12.15233159,188.51,188.44,1.6925]
[1736895969304,12.15233159,188.51,188.49,2.6534]
[1736895969804,12.15233159,188.51,188.44,1.6925]
[1736895970502,8.133,188.53,188.42,1.703]
[1736895970503,12.15233159,188.45,188.42,1.703]
[1736895970805,12.15233159,188.45,188.38,3.3322]
[1736895971604,12.15233159,188.45,188.44,2.6542]
[1736895971804,5.48,188.46,188.38,3.3322]
[1736895972206,5.48,188.46,188.45,2.6541]
[1736895973999,5.48,188.5,188.48,2.6536]
[1736895975802,5.48,188.5,188.41,1.5918]
[1736895976006,5.48,188.5,188.38,3.3322]
[1736895976007,12.15233159,188.47,188.38,3.3322]
[1736895976807,2.6541,188.46,188.42,2.6544]
[1736895977915,2.6541,188.46,188.43,2.6544]
[1736895978103,12.15233159,188.47,188.43,2.6544]
[1736895978309,12.15233159,188.47,188.38,3.3322]
[1736895978511,12.15233159,188.47,188.46,2.654]
[1736895978704,5.48,188.49,188.39,13.70943159]
[1736895979816,5.48,188.49,188.48,2.6537]